bitfinex/quotes_BTCUSD_20240905
["timestamp","ask_amount","ask_price","bid_price","bid_amount"]
[1725553346865,0.0110264,56286.0,56285.0,1.35747661]
[1725553347342,0.0110264,56286.0,56285.0,1.71481061]
[1725553347576,0.0110264,56286.0,56285.0,1.35947661]
[1725553347804,0.0110264,56286.0,56285.0,1.35747661]
[1725553348016,0.0110264,56286.0,56285.0,1.01014261]
[1725553348225,0.0110264,56286.0,56285.0,1.37247661]
[1725553348667,0.0110264,56286.0,56285.0,1.36447661]
[1725553349219,0.0110264,56286.0,56285.0,1.37447661]
[1725553349404,0.0110264,56286.0,56285.0,2.01761061]
[1725553349696,0.0110264,56286.0,56285.0,2.01061061]
[1725553349874,0.0110264,56286.0,56285.0,2.00861061]
[1725553350070,0.0110264,56286.0,56285.0,1.75481061]
[1725553350273,0.0110264,56286.0,56285.0,1.11084596]
[1725553350420,0.0110264,56286.0,56285.0,0.18751096]
[1725553350616,0.0110264,56286.0,56285.0,0.17551096]
[1725553350617,0.02294828,56286.0,56285.0,0.17551096]
[1725553350838,0.20061228,56286.0,56285.0,0.17551096]
[1725553351041,0.02294828,56286.0,56285.0,1.08139893]
[1725553351242,0.0110264,56286.0,56285.0,1.48017996]
[1725553351500,0.0110264,56286.0,56285.0,1.48217996]
[1725553351926,0.0110264,56286.0,56285.0,1.48017996]
[1725553352139,0.0110264,56286.0,56285.0,1.85751396]
[1725553352370,0.0110264,56286.0,56285.0,2.07681396]
[1725553352572,0.06321082,56305.0,56298.0,0.27063065]
[1725553352786,0.06321082,56305.0,56300.0,0.355235]
[1725553353029,0.177609,56304.0,56301.0,0.17551096]
[1725553353246,0.3552,56307.0,56301.0,0.17551096]
[1725553353483,0.0169701,56311.0,56302.0,0.27418242]
[1725553353689,0.355186,56309.0,56303.0,0.17551096]
[1725553353916,0.177602,56306.0,56303.0,0.17551096]
[1725553354122,0.177606,56305.0,56303.0,0.17551096]
[1725553354356,0.355196,56307.0,56303.0,0.17551096]
[1725553354357,0.177607,56304.0,56303.0,0.17551096]
[1725553354832,0.355245,56300.0,56294.0,0.27063065]
[1725553355037,0.355233,56301.0,56296.0,0.177631]
[1725553355247,0.355233,56301.0,56291.0,0.2767]
[1725553355248,0.1219,56301.0,56286.0,0.27063065]
[1725553355459,0.1219,56301.0,56287.0,0.17551096]
[1725553355677,0.316857,56288.0,56287.0,0.17551096]
[1725553355895,0.532972,56288.0,56287.0,0.17551096]
[1725553356314,0.27820435,56288.0,56287.0,0.17551096]
[1725553356607,0.177678,56282.0,56278.0,0.27063065]
[1725553356826,0.17768,56281.0,56279.0,0.17551096]
[1725553357269,0.355334,56285.0,56279.0,0.17551096]
[1725553357270,0.177673,56284.0,56280.0,0.177681]
[1725553357491,0.177673,56284.0,56278.0,0.62600465]
[1725553357492,0.177675,56283.0,56281.0,0.17906416]
[1725553357702,0.1163,56288.0,56281.0,0.17906416]
[1725553357703,0.355322,56287.0,56281.0,0.17906416]
[1725553357931,0.177664,56286.0,56282.0,0.44830565]
[1725553358130,0.471621,56288.0,56283.0,0.17551096]
[1725553358131,0.177669,56285.0,56283.0,0.17551096]
[1725553358321,0.355322,56287.0,56283.0,0.17551096]
[1725553358482,0.1163,56288.0,56283.0,0.17551096]
[1725553358706,0.355298,56291.0,56285.0,0.177665]
[1725553358707,0.355296,56291.0,56285.0,0.177665]
[1725553358859,0.355303,56290.0,56286.0,0.17551096]
[1725553359076,0.177651,56291.0,56286.0,0.17906383]
[1725553359292,0.494495,56292.0,56286.0,0.17551096]
[1725553359502,0.316847,56292.0,56288.0,0.177657]
[1725553359702,0.1196,56294.0,56289.0,0.17551096]
[1725553359926,0.355256,56298.0,56290.0,0.27418328]
[1725553360155,0.1196,56300.0,56295.0,0.35527]
[1725553360392,0.139,56301.0,56296.0,0.17551096]
[1725553360393,0.177624,56299.0,56296.0,0.17551096]
[1725553360606,0.177608,56304.0,56300.0,0.177619]
[1725553360822,0.474812,56305.0,56301.0,0.17551096]
[1725553361035,0.177611,56303.0,56301.0,0.17551096]
[1725553361243,0.177607,56304.0,56301.0,0.17551096]
[1725553361478,0.000813,56305.0,56302.0,0.177612]
[1725553361679,0.000813,56305.0,56303.0,0.17551096]
[1725553361903,0.000813,56305.0,56304.0,0.1811588]
[1725553362108,0.000813,56305.0,56304.0,0.35311796]
[1725553362544,0.000813,56305.0,56304.0,0.17551096]
[1725553362789,0.54359378,56305.0,56304.0,0.17551096]
[1725553363031,0.18838578,56305.0,56304.0,0.17551096]
[1725553363257,0.01078178,56305.0,56304.0,0.17551096]
[1725553363479,0.01078178,56305.0,56304.0,0.18351096]
[1725553363692,0.01078178,56305.0,56304.0,0.71988358]
[1725553363901,0.01078178,56305.0,56304.0,1.07509758]
[1725553364168,0.355148,56315.0,56304.0,1.07509758]
[1725553364169,0.143,56332.0,56304.0,0.69977658]
[1725553364380,0.17754,56326.0,56314.0,0.263]
[1725553364600,0.00997841,56325.0,56315.0,0.17906199]
[1725553364808,0.177567,56317.0,56315.0,0.17906199]
[1725553365023,0.00997841,56316.0,56315.0,0.17551096]
[1725553365235,0.177557,56320.0,56316.0,0.177568]
[1725553365435,0.177557,56320.0,56313.0,0.355151]
[1725553365436,0.0100191,56319.0,56318.0,0.80331665]
[1725553365658,0.143,56330.0,56318.0,0.17551096]
[1725553365659,0.355073,56327.0,56318.0,0.17551096]
[1725553365863,0.177568,56317.0,56310.0,0.27063065]
[1725553366075,0.1478191,56326.0,56310.0,0.27063065]
[1725553366076,0.01003643,56316.0,56312.0,0.35516]
[1725553366326,0.01003643,56316.0,56314.0,0.27063065]
[1725553366553,0.532678,56319.0,56318.0,0.001]
[1725553366789,0.887797,56319.0,56318.0,0.001]
[1725553367007,0.355164,56312.0,56305.0,0.01]
[1725553367217,0.1497,56319.0,56306.0,0.53071096]
[1725553367218,0.355153,56314.0,56306.0,0.53071096]
[1725553367448,0.177586,56311.0,56306.0,0.80134161]
[1725553367650,0.355167,56312.0,56306.0,0.62374161]
[1725553367866,0.35515,56315.0,56307.0,0.0035515]
[1725553368096,0.177574,56315.0,56311.0,0.177584]
[1725553368303,0.355139,56316.0,56312.0,0.17551096]
[1725553368510,0.177578,56313.0,56312.0,0.17551096]
[1725553368946,0.177578,56313.0,56300.0,0.1496]
[1725553368947,0.177599,56307.0,56303.0,0.177607]
[1725553369200,0.1497,56319.0,56305.0,0.006]
[1725553369201,0.355181,56310.0,56305.0,0.006]
[1725553369446,0.355181,56310.0,56306.0,0.17551096]
[1725553369664,0.177593,56309.0,56306.0,0.17551096]
[1725553369874,0.177588,56310.0,56307.0,0.177596]
[1725553370118,0.355152,56314.0,56308.0,0.17551096]
[1725553370331,0.1497,56319.0,56310.0,0.27063065]
[1725553370581,0.355126,56318.0,56311.0,0.31301096]
[1725553370805,0.355119,56320.0,56312.0,0.355163]
[1725553371034,0.17756,56319.0,56315.0,0.177571]
[1725553371258,0.355093,56324.0,56319.0,0.177558]
[1725553371483,0.177553,56321.0,56320.0,0.17551096]
[1725553371998,0.2539,56327.0,56310.0,0.62580265]
[1725553371999,0.27150252,56327.0,56310.0,0.62580265]
[1725553372231,0.177573,56315.0,56312.0,0.35309096]
[1725553372699,0.27150252,56327.0,56312.0,0.17551096]
[1725553372700,0.532735,56313.0,56312.0,0.17551096]
[1725553374684,0.50444,56316.0,56312.0,0.17551096]
[1725553374685,0.177575,56314.0,56312.0,0.17551096]
[1725553374888,0.177575,56314.0,56313.0,0.27063065]
[1725553375101,0.177575,56314.0,56313.0,0.44614161]
[1725553375796,0.532726,56314.0,56313.0,0.44614161]
[1725553376464,0.355146,56315.0,56313.0,0.45214161]
[1725553376665,0.532718,56315.0,56314.0,0.17551096]
[1725553376890,0.887864,56315.0,56314.0,0.17551096]
[1725553377727,0.532718,56315.0,56314.0,0.17551096]
[1725553378143,0.532717,56315.0,56314.0,0.17551096]
[1725553378368,0.507717,56315.0,56314.0,0.17551096]
[1725553378598,0.355122,56319.0,56314.0,0.17551096]
[1725553378816,0.177567,56317.0,56314.0,0.17551096]
[1725553379033,0.355122,56319.0,56314.0,0.17551096]
[1725553379235,0.01011265,56318.0,56314.0,0.17551096]
[1725553379491,0.177554,56321.0,56317.0,0.44819465]
[1725553379703,0.177559,56319.0,56318.0,0.17551096]
[1725553379907,0.177557,56320.0,56318.0,0.17551096]
[1725553380121,0.4999,56323.0,56318.0,0.17551096]
[1725553380340,0.19625447,56332.0,56321.0,0.27063065]
[1725553380554,0.02782266,56332.0,56326.0,0.177536]
[1725553380777,0.02782266,56332.0,56325.0,0.27063065]
[1725553380778,0.178329,56333.0,56327.0,0.35304396]
[1725553381000,0.355847,56333.0,56327.0,0.17551096]
[1725553381216,0.177525,56330.0,56327.0,0.17551096]
[1725553381455,0.000813,56333.0,56327.0,0.17551096]
[1725553381919,0.000813,56333.0,56330.0,0.177524]
[1725553382151,0.000813,56333.0,56331.0,0.17551096]
[1725553383059,0.000813,56333.0,56331.0,0.53054996]
[1725553383275,0.000813,56333.0,56332.0,0.177518]
[1725553383474,0.000813,56333.0,56332.0,0.35657898]
[1725553383640,0.000813,56333.0,56332.0,0.17906098]
[1725553384026,0.000813,56333.0,56332.0,0.35302896]
[1725553384460,0.000813,56333.0,56332.0,0.17551096]
[1725553384914,0.000813,56333.0,56332.0,1.06310296]
[1725553385331,0.000813,56333.0,56332.0,1.06610296]
[1725553385780,0.000813,56333.0,56332.0,1.06310296]
[1725553385984,0.00059935,56333.0,56332.0,1.06310296]
[1725553386195,0.00059935,56333.0,56332.0,1.06810296]
[1725553386640,0.00059935,56333.0,56332.0,0.17551096]
[1725553386846,0.01086565,56333.0,56332.0,0.35302896]
[1725553387075,0.01086565,56333.0,56332.0,0.17551096]
[1725553387298,0.01086565,56333.0,56332.0,0.70806596]
[1725553387512,0.01086565,56333.0,56332.0,1.06310296]
[1725553387739,0.00059935,56333.0,56332.0,1.41813996]
[1725553387960,0.00059935,56333.0,56332.0,1.06310296]
[1725553388207,0.00059935,56333.0,56332.0,1.69963996]
[1725553388454,0.00059935,56333.0,56332.0,2.07767696]
[1725553388675,0.00059935,56333.0,56332.0,2.09967696]
[1725553389119,0.00059935,56333.0,56332.0,2.45471396]
[1725553389346,0.00059935,56333.0,56332.0,2.54771396]
[1725553389566,0.00059935,56333.0,56332.0,2.56171396]
[1725553389780,0.00059935,56333.0,56332.0,2.20667696]
[1725553389995,0.00059935,56333.0,56332.0,2.22379417]
[1725553391099,0.00059935,56333.0,56332.0,2.56483117]
[1725553391502,0.00059935,56333.0,56332.0,2.20979417]
[1725553391720,0.00059935,56333.0,56332.0,2.22379417]
[1725553392880,0.00059935,56333.0,56332.0,2.57883117]
[1725553393991,0.00059935,56333.0,56332.0,2.67883117]
[1725553394198,0.00039935,56333.0,56332.0,2.66483117]
[1725553394416,0.01063635,56338.0,56337.0,1.629527]
[1725553394642,0.01063635,56338.0,56337.0,2.72167461]
[1725553395074,0.01043635,56338.0,56337.0,2.72167461]
[1725553395297,0.01023635,56338.0,56337.0,2.71967461]
[1725553395535,0.00993635,56338.0,56337.0,2.72167461]
[1725553395771,0.00993635,56338.0,56337.0,2.73567461]
[1725553396000,0.00963635,56338.0,56337.0,2.73567461]
[1725553396238,0.00943635,56338.0,56337.0,2.73567461]
[1725553396465,0.00933635,56338.0,56337.0,2.73567461]
[1725553396714,0.00933635,56338.0,56337.0,1.70266261]
[1725553396955,0.00933635,56338.0,56337.0,0.014]
[1725553396956,0.68073635,56338.0,56337.0,0.014]
[1725553397203,0.26433635,56338.0,56337.0,0.014]
[1725553397438,0.15862951,56338.0,56337.0,0.36701396]
[1725553397671,0.15862951,56338.0,56337.0,0.72201996]
[1725553397928,0.15862951,56338.0,56337.0,0.70801996]
[1725553398165,0.00913635,56338.0,56337.0,1.33365661]
[1725553398401,0.00995235,56338.0,56337.0,1.34165661]
[1725553398647,0.00995235,56338.0,56335.0,0.177509]
[1725553398887,0.00995235,56338.0,56336.0,0.17551096]
[1725553399123,0.00995235,56338.0,56337.0,0.114]
[1725553399370,0.18745235,56338.0,56337.0,0.114]
[1725553399862,0.18745235,56338.0,56337.0,0.1]
[1725553399863,1.39865235,56338.0,56337.0,0.1]
[1725553400340,1.39865235,56338.0,56337.0,0.2]
[1725553400581,1.04365235,56338.0,56337.0,0.2]
[1725553401064,0.33365235,56338.0,56337.0,0.2]
[1725553401327,0.15615235,56338.0,56337.0,0.2]
[1725553401569,0.00995235,56338.0,56337.0,1.17865061]
[1725553401794,0.00995235,56338.0,56337.0,0.64614161]
[1725553402041,0.00995235,56338.0,56337.0,1.18465061]
[1725553402280,0.00995235,56338.0,56337.0,1.53965661]
[1725553402522,0.00995235,56338.0,56337.0,1.18465061]
[1725553402776,0.00995235,56338.0,56337.0,0.38151096]
[1725553403014,0.00995235,56338.0,56337.0,0.206]
[1725553403015,0.18745235,56338.0,56337.0,0.206]
[1725553403258,0.54245235,56338.0,56337.0,0.206]
[1725553403502,0.89745235,56338.0,56337.0,0.206]
[1725553403752,0.00995235,56338.0,56337.0,0.206]
[1725553403981,0.00995235,56338.0,56337.0,1.18465061]
[1725553404452,0.00995235,56338.0,56337.0,1.53965661]
[1725553405654,0.00995235,56338.0,56337.0,1.89466261]
[1725553405891,0.00995235,56338.0,56337.0,1.88866261]
[1725553406131,0.00995235,56338.0,56337.0,1.54765661]
[1725553406834,0.00995235,56338.0,56337.0,1.53365661]
[1725553407087,0.00995235,56338.0,56337.0,0.90801996]
[1725553407312,0.00995235,56338.0,56337.0,0.37551096]
[1725553407542,0.00995235,56338.0,56337.0,0.55301396]
[1725553407821,0.00995235,56338.0,56337.0,0.90801996]
[1725553408057,0.00995235,56338.0,56337.0,1.19265061]
[1725553408522,0.00995235,56338.0,56337.0,1.17865061]
[1725553408991,0.00995235,56338.0,56337.0,1.19265061]
[1725553409233,0.00995235,56338.0,56337.0,0.38951096]
[1725553409460,0.00995235,56338.0,56337.0,0.56701396]
[1725553409684,0.00995235,56338.0,56337.0,0.92201996]
[1725553409904,0.02039349,56338.0,56337.0,0.92201996]
[1725553410150,0.00995235,56338.0,56337.0,1.90266261]
[1725553410679,0.00995235,56338.0,56337.0,2.05396261]
[1725553411577,0.00995235,56338.0,56337.0,2.05559461]
[1725553412059,0.00995235,56338.0,56337.0,0.92365196]
[1725553413460,0.02040452,56338.0,56337.0,0.56864596]
[1725553413695,0.00995235,56338.0,56337.0,0.92365196]
[1725553413922,0.02040452,56338.0,56337.0,0.92365196]
[1725553414144,0.00995235,56338.0,56337.0,0.92365196]
[1725553415082,0.02039156,56338.0,56337.0,0.92365196]
[1725553415292,0.00995235,56338.0,56337.0,0.92365196]
[1725553415534,0.00995235,56338.0,56337.0,1.27865796]
[1725553415758,0.00995235,56338.0,56337.0,0.92365196]
[1725553416443,0.02039478,56338.0,56337.0,0.92365196]
[1725553416658,0.00995235,56338.0,56337.0,0.92365196]
[1725553416884,0.02039478,56338.0,56337.0,1.27865796]
[1725553417111,0.00995235,56338.0,56337.0,1.90429461]
[1725553418216,0.00995235,56338.0,56337.0,2.04199461]
[1725553418716,0.00995235,56338.0,56337.0,1.90429461]
[1725553418941,0.00995235,56338.0,56337.0,1.27865796]
[1725553419167,0.00995235,56338.0,56337.0,0.92365196]
[1725553419609,0.02040815,56338.0,56337.0,0.92365196]
[1725553419783,0.00995235,56338.0,56337.0,0.92365196]
[1725553419994,0.00995235,56338.0,56337.0,1.1388585]
[1725553419995,0.02040434,56338.0,56337.0,1.1388585]
[1725553420193,0.00995235,56338.0,56337.0,1.1388585]
[1725553420410,0.00995235,56338.0,56337.0,1.4938645]
[1725553420411,0.02040434,56338.0,56337.0,1.4938645]
[1725553420606,0.00995235,56338.0,56337.0,1.4938645]
[1725553422318,0.020401,56338.0,56337.0,1.4938645]
[1725553422468,0.00995235,56338.0,56337.0,1.8488705]
[1725553422681,0.00995235,56338.0,56337.0,1.9865705]
[1725553423501,0.00995235,56338.0,56337.0,2.0095705]
[1725553423933,0.80805235,56338.0,56337.0,0.215632]
[1725553424094,0.81850669,56338.0,56337.0,0.215632]
[1725553424311,1.17350669,56338.0,56337.0,0.215632]
[1725553425234,1.52850669,56338.0,56337.0,0.215632]
[1725553426491,1.34105434,56338.0,56337.0,0.215632]
[1725553426690,1.87355434,56338.0,56337.0,0.215632]
[1725553426922,1.97355434,56338.0,56337.0,0.215632]
[1725553427175,1.61855434,56338.0,56337.0,0.201632]
[1725553427637,1.61855434,56338.0,56337.0,0.206632]
[1725553428091,1.61855434,56338.0,56337.0,0.201632]
[1725553428526,1.61855434,56338.0,56337.0,0.206632]
[1725553428751,1.97355434,56338.0,56337.0,0.206632]
[1725553429180,1.61855434,56338.0,56337.0,0.106632]
[1725553430475,1.26355434,56338.0,56337.0,0.106632]
[1725553430691,0.99795434,56338.0,56337.0,0.106632]
[1725553431566,0.64295434,56338.0,56337.0,0.106632]
[1725553431780,0.28795434,56338.0,56337.0,0.106632]
[1725553432753,0.01045434,56338.0,56337.0,1.16965796]
[1725553433304,0.01045434,56338.0,56337.0,0.81465196]
[1725553433795,0.01045434,56338.0,56337.0,1.16965796]
[1725553434063,0.01045434,56338.0,56337.0,0.92735196]
[1725553434517,0.01045434,56338.0,56337.0,1.28235796]
[1725553434737,0.01045434,56338.0,56337.0,1.63736396]
[1725553434985,0.01045434,56338.0,56337.0,1.28235796]
[1725553435223,0.01045434,56338.0,56337.0,1.63736396]
[1725553435672,0.01045434,56338.0,56337.0,1.63236396]
[1725553435923,0.01045434,56338.0,56337.0,1.27735796]
[1725553436154,0.01045434,56338.0,56337.0,1.28735796]
[1725553436368,0.01045434,56338.0,56337.0,1.64236396]
[1725553436814,0.01045434,56338.0,56337.0,1.28735796]
[1725553437029,0.01127034,56338.0,56337.0,0.81965196]
[1725553437275,0.01127034,56338.0,56337.0,0.64214896]
[1725553437497,0.02163181,56338.0,56337.0,0.80965196]
[1725553437729,0.02163181,56338.0,56337.0,0.82365196]
[1725553437979,0.01127034,56338.0,56337.0,0.82365196]
[1725553438195,0.01127034,56338.0,56337.0,0.80965196]
[1725553438663,0.01127034,56338.0,56337.0,0.82365196]
[1725553439114,0.02162407,56338.0,56337.0,0.82365196]
[1725553440491,0.19912407,56338.0,56337.0,0.115632]
[1725553440725,0.01127034,56338.0,56337.0,0.115632]
[1725553440942,0.19918779,56338.0,56337.0,0.115632]
[1725553441659,0.55418779,56338.0,56337.0,0.115632]
[1725553442346,0.55418779,56338.0,56337.0,0.015632]
[1725553443001,0.19918779,56338.0,56337.0,0.015632]
[1725553443456,0.55418779,56338.0,56337.0,0.015632]
[1725553444088,0.90918779,56338.0,56337.0,0.015632]
[1725553444784,1.26418779,56338.0,56337.0,0.015632]
[1725553445454,0.90918779,56338.0,56337.0,0.015632]
[1725553445709,0.44616752,56338.0,56337.0,0.015632]
[1725553447079,0.5325,56338.0,56337.0,0.015632]
[1725553447311,0.5325,56338.0,56337.0,0.001632]
[1725553447737,0.5325,56338.0,56337.0,0.007632]
[1725553448010,0.354991,56340.0,56337.0,0.007632]
[1725553448239,0.177492,56341.0,56337.0,0.007632]
[1725553448474,0.177493,56341.0,56338.0,0.177499]
[1725553448714,0.177498,56339.0,56337.0,0.007632]
[1725553448953,0.1775,56338.0,56337.0,0.007632]
[1725553449170,0.1775,56338.0,56337.0,0.001632]
[1725553449399,0.000816,56338.0,56337.0,0.001632]
[1725553449623,0.000816,56338.0,56337.0,0.179135]
[1725553449852,0.000816,56338.0,56337.0,1.32580743]
[1725553450083,0.000816,56338.0,56337.0,1.67726396]
[1725553450738,0.000816,56338.0,56337.0,1.32625796]
[1725553450978,0.000816,56338.0,56337.0,0.97125196]
[1725553451203,0.000816,56338.0,56337.0,1.32225796]
[1725553451639,0.000816,56338.0,56337.0,1.71426396]
[1725553453457,0.000816,56338.0,56337.0,1.69126396]
[1725553455511,0.000816,56338.0,56337.0,1.55326396]
[1725553456171,0.000816,56338.0,56337.0,1.19825796]
[1725553456698,0.000816,56338.0,56337.0,0.015632]
[1725553456956,0.000816,56338.0,56337.0,0.193135]
[1725553457177,0.178316,56338.0,56337.0,0.015632]
[1725553457398,0.000816,56338.0,56337.0,0.015632]
[1725553457618,0.000816,56338.0,56337.0,0.548141]
[1725553458295,0.000816,56338.0,56337.0,0.015632]
[1725553458541,0.676516,56338.0,56337.0,0.015632]
[1725553459032,0.144016,56338.0,56337.0,0.015632]
[1725553459248,0.000816,56338.0,56337.0,0.76341057]
[1725553459467,0.178316,56338.0,56337.0,0.015632]
[1725553459710,0.888316,56338.0,56337.0,0.001632]
[1725553460395,1.243316,56338.0,56337.0,0.013632]
[1725553460866,1.511016,56338.0,56337.0,0.001632]
[1725553461077,1.56421247,56338.0,56337.0,0.007632]
[1725553461793,1.56421247,56338.0,56337.0,0.001632]
[1725553462031,1.69081071,56338.0,56337.0,0.001632]
[1725553462250,1.80200949,56338.0,56337.0,0.001632]
[1725553462728,2.37227906,56338.0,56337.0,0.001632]
[1725553462947,2.04581071,56338.0,56337.0,0.001632]
[1725553463171,2.04581071,56338.0,56337.0,0.006632]
[1725553463641,0.249016,56338.0,56337.0,0.179135]
[1725553463859,0.249016,56338.0,56337.0,0.006632]
[1725553463860,0.278316,56338.0,56337.0,0.006632]
[1725553464129,0.988316,56338.0,56337.0,0.006632]
[1725553464358,1.343316,56338.0,56337.0,0.006632]
[1725553464818,1.834616,56338.0,56337.0,0.006632]
[1725553465044,1.592916,56338.0,56337.0,0.006632]
[1725553465266,1.78391,56338.0,56337.0,0.006632]
[1725553465488,1.67271071,56338.0,56337.0,0.006632]
[1725553465726,1.78391036,56338.0,56337.0,0.006632]
[1725553466594,1.67271071,56338.0,56337.0,0.006632]
[1725553467505,1.3146,56338.0,56337.0,0.006632]
[1725553467725,1.4921,56338.0,56337.0,0.006632]
[1725553468185,1.54528323,56338.0,56337.0,0.006632]
[1725553468434,2.1175528,56338.0,56337.0,0.006632]
[1725553468650,2.12218539,56338.0,56337.0,0.006632]
[1725553468864,2.31854506,56338.0,56337.0,0.006632]
[1725553469075,2.18558449,56338.0,56337.0,0.006632]
[1725553469306,2.54058449,56338.0,56337.0,0.006632]
[1725553469522,2.54058449,56338.0,56337.0,0.001632]
[1725553469738,2.64058449,56338.0,56337.0,0.001632]
[1725553469988,2.68458449,56338.0,56337.0,0.001632]
[1725553470443,1.390341,56318.0,56317.0,0.52650515]
[1725553470663,1.71931057,56318.0,56317.0,0.52650515]
[1725553470897,1.71931057,56318.0,56315.0,0.001632]
[1725553470898,1.242983,56316.0,56315.0,0.001632]
[1725553472846,0.632783,56308.0,56307.0,0.001626]
[1725553473310,0.277594,56308.0,56307.0,0.001626]
[1725553473552,0.177594,56308.0,56307.0,0.001626]
[1725553473766,0.532783,56308.0,56307.0,0.001626]
[1725553473982,0.888972,56308.0,56307.0,0.002626]
[1725553474224,0.533783,56308.0,56307.0,0.002626]
[1725553474464,0.532783,56308.0,56307.0,0.001626]
[1725553474700,0.177594,56308.0,56307.0,0.001626]
[1725553474936,0.177585,56312.0,56307.0,0.179223]
[1725553475161,0.177594,56308.0,56307.0,0.001626]
[1725553475388,0.177591,56309.0,56307.0,0.001626]
[1725553475630,0.355149,56315.0,56307.0,0.001626]
[1725553475848,0.177582,56312.0,56308.0,0.1436]
[1725553476067,0.17759,56310.0,56308.0,0.1436]
[1725553476297,0.17759,56310.0,56307.0,0.001626]
[1725553476530,0.17759,56310.0,56307.0,0.005626]
[1725553477000,0.355141,56316.0,56308.0,0.1161]
[1725553477224,0.177578,56314.0,56309.0,0.177591]
[1725553477444,0.177579,56313.0,56309.0,0.177591]
[1725553477686,0.177579,56313.0,56308.0,0.295694]
[1725553477687,0.355159,56313.0,56308.0,0.295694]
[1725553477925,0.177586,56311.0,56308.0,0.293694]
[1725553478155,0.177576,56314.0,56309.0,0.355181]
[1725553478369,0.355149,56315.0,56308.0,0.1161]
[1725553478595,0.177586,56311.0,56308.0,0.1161]
[1725553478821,0.001,56316.0,56311.0,0.177583]
[1725553479080,0.001,56316.0,56309.0,0.31081096]
[1725553479371,0.001,56316.0,56309.0,0.48840096]
[1725553479614,0.001,56316.0,56310.0,0.355172]
[1725553479835,0.177578,56313.0,56310.0,0.177587]
[1725553480072,0.177575,56314.0,56311.0,0.177585]
[1725553480734,0.356158,56313.0,56309.0,0.1353]
[1725553480956,0.177583,56312.0,56309.0,0.1353]
[1725553481201,0.177583,56312.0,56309.0,0.312891]
[1725553482110,0.355158,56313.0,56309.0,0.312891]
[1725553482111,0.177578,56313.0,56309.0,0.312891]
[1725553482336,0.356154,56314.0,56309.0,0.312891]
[1725553482337,0.177582,56312.0,56309.0,0.312891]
[1725553482631,0.001,56314.0,56312.0,0.177581]
[1725553483115,0.355134,56317.0,56310.0,0.355174]
[1725553483335,0.177574,56315.0,56311.0,0.177584]
[1725553483547,0.177576,56314.0,56311.0,0.177584]
[1725553483758,0.177576,56314.0,56310.0,0.177587]
[1725553483962,0.177576,56314.0,56311.0,0.177584]
[1725553484612,0.177576,56314.0,56311.0,0.180584]
[1725553484831,0.177579,56313.0,56311.0,0.003]
[1725553485060,0.177579,56313.0,56310.0,0.177587]
[1725553485324,0.177582,56312.0,56309.0,0.31289]
[1725553485535,0.177579,56313.0,56310.0,0.177588]
[1725553486182,0.177582,56312.0,56309.0,0.31289]
[1725553486397,0.177582,56312.0,56309.0,0.1353]
[1725553486398,0.177587,56311.0,56309.0,0.1353]
[1725553486620,0.177588,56310.0,56309.0,0.1353]
[1725553487096,0.532746,56312.0,56311.0,0.011]
[1725553487534,0.177586,56311.0,56309.0,0.1353]
[1725553487751,0.355154,56314.0,56309.0,0.1493]
[1725553487993,0.000816,56316.0,56315.0,0.646417]
[1725553488258,0.000816,56316.0,56315.0,1.67431796]
[1725553490084,0.000816,56316.0,56315.0,2.05446296]
[1725553490314,0.000816,56316.0,56315.0,2.06146296]
[1725553490798,0.000816,56316.0,56315.0,2.05246296]
[1725553491242,0.000816,56316.0,56315.0,2.09846296]
[1725553491489,0.000816,56316.0,56315.0,2.19846296]
[1725553491716,0.17751,56335.0,56332.0,0.432518]
[1725553491925,0.17751,56335.0,56332.0,0.255]
[1725553492136,0.177515,56333.0,56332.0,0.1126]
[1725553493025,0.355013,56336.0,56332.0,0.1126]
[1725553493246,0.355013,56336.0,56328.0,0.355059]
[1725553493248,0.355021,56335.0,56328.0,0.1162]
[1725553493513,0.37254961,56339.0,56332.0,0.001]
[1725553493738,0.177515,56333.0,56332.0,0.001]
[1725553493953,0.177515,56333.0,56329.0,0.177527]
[1725553494165,0.177515,56333.0,56332.0,0.001]
[1725553494331,0.177511,56335.0,56332.0,0.001]
[1725553494793,0.01755061,56339.0,56329.0,0.177526]
[1725553494995,0.177516,56333.0,56332.0,0.003]
[1725553496039,0.177515,56333.0,56332.0,0.003]
[1725553496242,0.177515,56333.0,56329.0,0.177526]
[1725553496438,0.177519,56332.0,56329.0,0.177526]
[1725553496778,0.177513,56334.0,56331.0,0.177521]
[1725553497234,0.17751,56335.0,56331.0,0.39279647]
[1725553497458,0.177513,56334.0,56331.0,0.39279647]
[1725553497669,0.355014,56336.0,56332.0,0.177518]
[1725553497880,0.177513,56334.0,56332.0,0.2682]
[1725553499281,0.177515,56333.0,56332.0,0.1194]
[1725553499507,0.177514,56334.0,56332.0,0.1194]
[1725553499766,0.35502,56335.0,56332.0,0.1194]
[1725553499767,0.532546,56333.0,56332.0,0.1254]
[1725553500226,0.532546,56333.0,56332.0,0.006]
[1725553500439,1.495408,56333.0,56332.0,0.006]
[1725553500719,1.82068547,56333.0,56332.0,0.006]
[1725553500947,2.53274747,56333.0,56332.0,0.006]
[1725553501444,0.177572,56315.0,56313.0,0.1149]
[1725553501657,0.355142,56316.0,56313.0,0.1149]
[1725553501658,0.177575,56314.0,56313.0,0.1149]
[1725553502300,0.177572,56315.0,56313.0,0.1149]
[1725553502516,0.177575,56314.0,56313.0,0.1149]
[1725553502737,0.887877,56314.0,56313.0,0.1149]
[1725553502985,0.887877,56314.0,56311.0,0.141632]
[1725553502986,0.177582,56312.0,56311.0,0.001632]
[1725553503221,1.243074,56312.0,56311.0,0.001632]
[1725553503454,1.380174,56312.0,56311.0,0.001632]
[1725553503761,1.735338,56312.0,56311.0,0.001632]
[1725553503965,1.846238,56312.0,56311.0,0.001632]
[1725553504177,1.956238,56312.0,56311.0,0.001632]
[1725553504411,1.591074,56312.0,56311.0,0.001632]
[1725553504638,0.277582,56312.0,56311.0,0.001632]
[1725553504855,0.277582,56312.0,56311.0,0.003632]
[1725553504856,0.177582,56312.0,56311.0,0.003632]
[1725553505093,0.1363,56323.0,56312.0,0.177579]
[1725553505336,0.177564,56318.0,56314.0,0.177574]
[1725553505566,0.177563,56318.0,56312.0,0.355162]